bitfinex/quotes_BTCUSD_20211001
["timestamp","ask_amount","ask_price","bid_price","bid_amount"]
[1633123235778,0.21553836,48426.0,48425.0,0.21845631]
[1633123235981,0.21553836,48426.0,48425.0,0.012]
[1633123236179,0.21606846,48426.0,48425.0,0.012]
[1633123236380,0.21606846,48426.0,48425.0,0.00789035]
[1633123236580,0.21553836,48426.0,48425.0,0.00789035]
[1633123236982,0.21553836,48426.0,48423.0,0.0183]
[1633123237179,0.00123736,48426.0,48423.0,0.0183]
[1633123237380,0.00135736,48426.0,48423.0,0.0183]
[1633123237582,0.00135736,48426.0,48425.0,6e-05]
[1633123237785,0.214421,48426.0,48425.0,6e-05]
[1633123237980,0.214421,48426.0,48425.0,0.30495771]
[1633123238181,0.00012,48426.0,48425.0,0.30495771]
[1633123238380,0.00012,48426.0,48425.0,0.29495771]
[1633123238780,0.00012,48426.0,48424.0,0.03249618]
[1633123238982,0.00012,48426.0,48424.0,0.05079618]
[1633123239181,0.00012,48426.0,48424.0,0.36043618]
[1633123239785,0.00012,48426.0,48424.0,0.39043618]
[1633123240388,0.00012,48426.0,48424.0,0.08079618]
[1633123240787,0.01426329,48431.0,48424.0,0.08079618]
[1633123240988,0.20770052,48429.0,48424.0,0.08079618]
[1633123241187,0.00125374,48425.0,48424.0,0.05079618]
[1633123241385,0.00125374,48425.0,48424.0,0.05016676]
[1633123241785,0.00125374,48425.0,48424.0,0.08016676]
[1633123242190,0.206446,48429.0,48424.0,0.08016676]
[1633123242784,0.24849038,48425.0,48424.0,0.08016676]
[1633123243186,0.00526955,48428.0,48424.0,0.05016676]
[1633123243790,0.02026955,48428.0,48424.0,0.08016676]
[1633123244188,0.23716748,48426.0,48424.0,0.08016676]
[1633123244389,0.23716748,48426.0,48424.0,0.07016676]
[1633123244791,0.00012,48425.0,48424.0,0.07016676]
[1633123245191,0.00012,48425.0,48424.0,0.04016676]
[1633123245395,0.00012,48425.0,48424.0,0.03857676]
[1633123245791,0.022,48425.0,48424.0,0.06857676]
[1633123247198,0.23728748,48426.0,48424.0,0.03857676]
[1633123247795,0.26128748,48426.0,48424.0,0.06757676]
[1633123248797,0.26128748,48426.0,48424.0,0.05340971]
[1633123249396,0.26128748,48426.0,48425.0,0.5]
[1633123249600,0.26128748,48426.0,48425.0,0.827942]
[1633123249798,0.26228748,48426.0,48425.0,0.827942]
[1633123249996,0.21228748,48426.0,48425.0,0.827942]
[1633123250999,0.21028748,48426.0,48425.0,0.827942]
[1633123251199,0.18528748,48426.0,48425.0,0.827942]
[1633123251599,0.18528748,48426.0,48425.0,0.5183]
[1633123251799,0.21128748,48426.0,48425.0,0.5473]
[1633123253000,0.21128748,48426.0,48425.0,0.75370901]
[1633123253201,0.18528748,48426.0,48425.0,0.72470901]
[1633123253603,0.18521277,48426.0,48425.0,0.72470901]
[1633123253807,0.00012,48426.0,48425.0,0.72470901]
[1633123254002,0.01012,48426.0,48425.0,0.75470901]
[1633123254202,0.02118288,48426.0,48425.0,0.7810911]
[1633123254600,0.02118288,48426.0,48425.0,1.00620089]
[1633123254800,0.02118288,48426.0,48425.0,0.7810911]
[1633123255002,0.02118288,48426.0,48425.0,1.1939091]
[1633123255404,0.01118288,48426.0,48425.0,1.1639091]
[1633123256007,0.03718288,48426.0,48425.0,1.1929091]
[1633123256471,0.03718288,48426.0,48425.0,0.98650009]
[1633123257206,0.03718288,48426.0,48425.0,0.57368209]
[1633123257405,0.03718288,48426.0,48425.0,0.54468209]
[1633123257606,0.01118288,48426.0,48425.0,0.54468209]
[1633123258008,0.03218288,48426.0,48425.0,0.57468209]
[1633123259214,0.01118288,48426.0,48425.0,0.54468209]
[1633123259614,0.01242197,48426.0,48425.0,0.5183]
[1633123259811,0.00135909,48426.0,48425.0,0.5183]
[1633123260010,0.04235909,48426.0,48425.0,0.5183]
[1633123260211,0.218386,48426.0,48425.0,0.5183]
[1633123260412,0.53289657,48426.0,48425.0,0.5183]
[1633123260610,0.74719757,48426.0,48425.0,0.5183]
[1633123260812,0.432687,48426.0,48425.0,0.5183]
[1633123261215,0.391687,48426.0,48425.0,0.5183]
[1633123261619,0.39044791,48426.0,48425.0,0.5183]
[1633123261820,0.17614691,48426.0,48425.0,0.5179]
[1633123262015,0.20514691,48426.0,48425.0,0.5449]
[1633123263214,0.17614691,48426.0,48425.0,0.5179]
[1633123263615,0.17614691,48426.0,48415.0,0.69424391]
[1633123263820,0.17614691,48426.0,48416.0,0.0455208]
[1633123264014,0.20514691,48426.0,48425.0,0.026]
[1633123264213,0.41944791,48426.0,48425.0,0.0443]
[1633123264814,0.42068401,48426.0,48425.0,0.0443]
[1633123265214,0.40274703,48426.0,48425.0,0.04468209]
[1633123265617,0.36186054,48422.0,48415.0,0.487802]
[1633123265817,0.19258819,48417.0,48416.0,0.0455473]
[1633123266019,0.0413387,48426.0,48416.0,0.0455473]
[1633123266219,0.0413387,48426.0,48417.0,0.02725302]
[1633123266420,0.0413387,48426.0,48418.0,0.0183]
[1633123266616,0.0413387,48426.0,48419.0,0.02725337]
[1633123266815,0.0413387,48426.0,48420.0,0.24415301]
[1633123267015,0.23850376,48425.0,48420.0,0.0183]
[1633123267616,0.206465,48424.0,48420.0,0.0183]
[1633123268014,0.206465,48424.0,48420.0,0.0443]
[1633123268220,0.27728616,48422.0,48420.0,0.0443]
[1633123269417,0.27728616,48422.0,48420.0,0.0183]
[1633123270015,0.30528616,48422.0,48420.0,0.0463]
[1633123270621,0.30540616,48422.0,48420.0,0.0463]
[1633123270821,0.02423789,48421.0,48420.0,0.0463]
[1633123271221,0.02423789,48421.0,48420.0,0.07885797]
[1633123271507,0.02812,48422.0,48420.0,0.5370889]
[1633123271630,0.19046147,48433.0,48421.0,0.54915928]
[1633123271824,0.09046147,48433.0,48426.0,0.00129454]
[1633123272021,0.09046147,48433.0,48429.0,0.309597]
[1633123272222,0.09046147,48433.0,48430.0,0.27293575]
[1633123272426,0.09046147,48433.0,48431.0,0.24947257]
[1633123272622,0.09046147,48433.0,48432.0,0.25203668]
[1633123272823,0.09046147,48433.0,48432.0,0.0183]
[1633123273022,0.0916679,48433.0,48432.0,0.0183]
[1633123273623,0.09046147,48433.0,48432.0,0.1183]
[1633123274022,0.11746147,48433.0,48432.0,0.1463]
[1633123274233,0.11746147,48433.0,48432.0,0.39321127]
[1633123274423,0.11746147,48433.0,48432.0,0.519761]
[1633123274622,0.11746147,48433.0,48432.0,0.30546]
[1633123275223,0.11746147,48433.0,48432.0,0.27746]
[1633123275425,0.08048766,48432.0,48426.0,0.20052]
[1633123275623,0.34415625,48433.0,48432.0,0.01951234]
[1633123275825,0.00121017,48427.0,48426.0,0.0183]
[1633123276023,0.00121017,48427.0,48426.0,0.0493]
[1633123276426,0.31090317,48427.0,48426.0,0.0493]
[1633123276624,0.52520417,48427.0,48426.0,0.0493]
[1633123276831,0.52520417,48427.0,48426.0,0.049048]
[1633123277625,0.52520417,48427.0,48426.0,0.018048]
[1633123278025,0.52520417,48427.0,48426.0,0.050048]
[1633123278924,0.21551117,48427.0,48426.0,0.050048]
[1633123279432,0.39742311,48427.0,48426.0,0.018048]
[1633123279627,0.206477,48424.0,48419.0,0.04463088]
[1633123279834,0.206477,48424.0,48415.0,0.487802]
[1633123279835,0.00125722,48420.0,48415.0,0.487802]
[1633123280027,0.00121597,48416.0,48415.0,0.487802]
[1633123280229,0.31098797,48416.0,48415.0,0.506102]
[1633123280427,0.50516372,48416.0,48415.0,0.506102]
[1633123280624,0.19539172,48416.0,48415.0,0.506102]
[1633123280830,0.51276103,48416.0,48415.0,0.506102]
[1633123281428,0.51276103,48416.0,48402.0,0.04919295]
[1633123281429,0.96741551,48416.0,48402.0,0.04919295]
[1633123281629,0.00121364,48410.0,48407.0,0.0183]
[1633123281832,0.2715728,48401.0,48392.0,0.206498]
[1633123282036,0.00129264,48394.0,48385.0,0.04771078]
[1633123282230,0.00128811,48392.0,48386.0,0.0183]
[1633123282429,0.00128811,48392.0,48384.0,0.0004]
[1633123282430,0.29859795,48392.0,48387.0,0.0183]
[1633123282632,0.214301,48391.0,48389.0,0.1]
[1633123282836,0.29296464,48390.0,48389.0,0.1]
[1633123283030,0.29296464,48390.0,48384.0,0.0004]
[1633123283031,0.50795906,48390.0,48384.0,0.0004]
[1633123283229,0.214301,48389.0,48384.0,0.0004]
[1633123283505,0.21550234,48385.0,48384.0,0.0004]
[1633123283732,0.214301,48382.0,48381.0,0.0496]
[1633123283929,0.77481509,48382.0,48380.0,0.0004]
[1633123284131,0.214301,48381.0,48380.0,0.0004]
[1633123284331,0.47491073,48381.0,48380.0,0.0504]
[1633123284732,0.47407526,48381.0,48380.0,0.0504]
[1633123285131,0.77281197,48381.0,48380.0,0.0004]
[1633123285332,0.51479604,48381.0,48380.0,0.0354]
[1633123285730,0.51479604,48381.0,48380.0,0.0004]
[1633123285932,0.76973335,48381.0,48380.0,0.0004]
[1633123286133,0.70033294,48381.0,48380.0,0.0004]
[1633123286934,0.0036,48375.0,48370.0,0.0016]
[1633123287145,0.214353,48371.0,48366.0,0.000875]
[1633123287334,0.214353,48367.0,48366.0,0.000875]
[1633123287537,0.267453,48367.0,48366.0,0.000875]
[1633123287935,0.301453,48367.0,48366.0,0.000875]
[1633123288132,0.0871,48367.0,48366.0,0.000875]
[1633123288531,0.301453,48367.0,48366.0,0.000875]
[1633123289330,0.267453,48367.0,48366.0,0.000875]
[1633123289531,0.26872049,48367.0,48366.0,0.000875]
[1633123289738,0.49192049,48367.0,48365.0,0.0012]
[1633123289941,0.2940519,48366.0,48365.0,0.0012]
[1633123290132,0.50125762,48366.0,48365.0,0.0012]
[1633123290733,0.72445762,48366.0,48365.0,0.0012]
[1633123291934,0.75545762,48366.0,48365.0,0.0012]
[1633123292339,0.75545762,48366.0,48364.0,0.0008]
[1633123292532,0.26864171,48365.0,48364.0,0.0008]
[1633123292732,0.49243277,48365.0,48364.0,0.0008]
[1633123292933,0.49243277,48365.0,48363.0,0.0004]
[1633123292934,0.5482692,48365.0,48363.0,0.0004]
[1633123293132,0.21559216,48364.0,48363.0,0.0004]
[1633123293334,0.2704909,48364.0,48363.0,0.0004]
[1633123293536,0.2704909,48364.0,48349.0,0.0012]
[1633123293537,0.477139,48360.0,48349.0,0.0012]
[1633123293740,0.00127892,48350.0,48348.0,0.0016]
[1633123293935,0.2148831,48349.0,48348.0,0.0016]
[1633123294135,0.267453,48349.0,48348.0,0.0016]
[1633123294334,0.267453,48349.0,48347.0,0.0004]
[1633123294537,0.2148831,48348.0,48347.0,0.0004]
[1633123294734,0.4924133,48348.0,48347.0,0.0004]
[1633123295136,0.49365571,48348.0,48347.0,0.0004]
[1633123295744,0.27045571,48348.0,48347.0,0.0004]
[1633123295947,0.52465571,48348.0,48347.0,0.0004]
[1633123296546,0.88798295,48348.0,48347.0,0.0004]
[1633123296745,2.00486237,48348.0,48347.0,0.0004]
[1633123297146,0.60086237,48348.0,48347.0,0.0004]
[1633123297550,0.60086237,48348.0,48344.0,0.0012]
[1633123297551,0.88798295,48348.0,48344.0,0.0012]
[1633123297749,0.22443724,48346.0,48336.0,0.46974376]
[1633123297947,0.00129288,48337.0,48336.0,0.46974376]
[1633123298148,0.00129288,48337.0,48336.0,0.06084376]
[1633123298149,0.00256393,48337.0,48336.0,0.06084376]
[1633123298350,1.46741471,48329.0,48323.0,0.0016]
[1633123298625,0.214353,48325.0,48323.0,0.0016]
[1633123298818,0.214353,48325.0,48324.0,0.33428762]
[1633123298819,0.2679831,48325.0,48324.0,0.33428762]
[1633123299015,0.2679831,48325.0,48324.0,0.0016]
[1633123299219,0.2679831,48325.0,48317.0,0.0016]
[1633123299220,0.2679831,48325.0,48308.0,0.0012]
[1633123299417,0.2679831,48325.0,48313.0,0.24451119]
[1633123299418,0.46094203,48324.0,48313.0,0.24451119]
[1633123299617,0.206991,48317.0,48313.0,0.24451119]
[1633123299816,1.12096,48327.0,48313.0,0.24451119]
[1633123299817,0.0531,48316.0,48313.0,0.24451119]
[1633123300018,0.0531,48316.0,48314.0,0.124917]
[1633123300220,0.0531,48316.0,48313.0,0.24451119]
[1633123300820,0.0531,48316.0,48314.0,0.3495547]
[1633123301420,0.0531,48316.0,48313.0,0.24451119]
[1633123301421,0.0531,48316.0,48310.0,0.0183]
[1633123302023,0.0821,48316.0,48310.0,0.0183]
[1633123302421,0.0821,48316.0,48314.0,0.24345629]
[1633123303422,0.0821,48316.0,48311.0,0.30860158]
[1633123303822,0.0531,48316.0,48315.0,0.00121385]
[1633123304023,0.0801,48316.0,48315.0,0.00121385]
[1633123304226,0.294453,48316.0,48315.0,0.00121385]
[1633123304422,0.294453,48316.0,48315.0,0.22065474]
[1633123304621,0.0801,48316.0,48315.0,0.45546536]
[1633123305023,0.0801,48316.0,48315.0,1.01980971]
[1633123305224,0.0801,48316.0,48315.0,1.01951118]
[1633123305824,0.0801,48316.0,48315.0,0.78470056]
[1633123306026,0.0621,48316.0,48315.0,0.78470056]
[1633123306623,0.0621,48316.0,48315.0,1.09500956]
[1633123307024,1.46741471,48329.0,48315.0,1.09500956]
[1633123307229,1.46741471,48329.0,48328.0,0.00125425]
[1633123307425,1.68176771,48329.0,48328.0,0.01955425]
[1633123307625,1.68176771,48329.0,48328.0,0.20854171]
[1633123307826,0.00124179,48337.0,48329.0,2.64168734]
[1633123308033,0.0005301,48360.0,48334.0,0.0012344]
[1633123308034,1.05890484,48352.0,48334.0,0.0012344]
[1633123308229,0.5,48350.0,48335.0,0.0183]
[1633123308526,0.00120484,48352.0,48341.0,0.20681065]
[1633123308725,0.00120484,48352.0,48346.0,0.23428401]
[1633123308925,0.00120484,48352.0,48347.0,0.25765422]
[1633123309127,0.01306588,48352.0,48348.0,0.36556278]
[1633123309328,0.01186104,48352.0,48349.0,0.20677934]
[1633123309527,0.01186104,48352.0,48350.0,0.24474626]
[1633123309928,0.01186104,48352.0,48351.0,0.0183]
[1633123310126,0.02886104,48352.0,48351.0,0.0183]
[1633123310531,0.02686104,48352.0,48351.0,0.0183]
[1633123310926,0.02470271,48352.0,48351.0,0.0183]
[1633123311127,0.02470271,48352.0,48351.0,0.232749]
[1633123311325,0.00770271,48352.0,48351.0,0.46729235]
[1633123312130,0.02970271,48352.0,48351.0,0.49829235]
[1633123313330,0.02970271,48352.0,48351.0,0.0183]
[1633123313331,0.28140826,48352.0,48351.0,0.0183]
[1633123313548,0.00895384,48352.0,48351.0,0.0183]
[1633123313730,0.22334084,48352.0,48351.0,0.0183]
[1633123314129,0.25234084,48352.0,48351.0,0.0303]
[1633123314332,0.25108971,48352.0,48351.0,0.0303]
[1633123314529,0.25108971,48352.0,48351.0,0.0203]
[1633123314730,0.029,48352.0,48351.0,0.0203]
[1633123314930,0.03108828,48352.0,48351.0,0.37239014]
[1633123315131,0.03108828,48352.0,48351.0,0.58677714]
[1633123315329,0.03108828,48352.0,48351.0,0.81842071]
[1633123315528,0.00208828,48352.0,48351.0,0.68648355]
[1633123316132,0.00508828,48352.0,48351.0,0.94368355]
[1633123316730,0.00508828,48352.0,48351.0,0.9486462]
[1633123316930,0.00508828,48352.0,48351.0,0.94985164]
[1633123317131,0.00508828,48352.0,48351.0,1.17305164]
[1633123317333,0.00208828,48352.0,48351.0,1.13905164]
[1633123318128,0.01708828,48352.0,48351.0,1.17205164]
[1633123318334,0.01708828,48352.0,48351.0,0.94885164]
[1633123318531,0.01708828,48352.0,48351.0,1.17205164]
[1633123319329,0.00125857,48373.0,48358.0,0.206722]
[1633123319631,0.00125857,48373.0,48369.0,0.24722369]
[1633123319832,0.00125857,48373.0,48370.0,0.23834871]
[1633123320031,0.0012965,48371.0,48369.0,0.24722369]
[1633123320231,0.0012965,48371.0,48368.0,0.29485663]
[1633123320432,0.0012965,48371.0,48361.0,0.20672292]
[1633123320433,0.00120247,48369.0,48361.0,0.20672292]
[1633123320631,0.00881745,48372.0,48365.0,0.0223348]
[1633123321429,0.00881745,48372.0,48369.0,0.29422996]
[1633123322028,0.04381745,48372.0,48369.0,0.29422996]
[1633123323033,0.0623023,48372.0,48365.0,0.0223348]
[1633123323231,0.214387,48371.0,48365.0,0.0223348]
[1633123323433,0.2149171,48371.0,48365.0,0.0223348]
[1633123323634,0.214387,48371.0,48365.0,0.0223348]
[1633123323834,0.214387,48371.0,48350.0,0.94993973]
[1633123323835,0.310154,48369.0,48350.0,0.94993973]
[1633123324038,0.214387,48368.0,48358.0,0.2715433]
[1633123324433,0.214387,48368.0,48350.0,0.00123973]
[1633123324635,0.421161,48368.0,48352.0,0.0183]
[1633123324836,0.23818645,48367.0,48352.0,0.0183]
[1633123325033,0.19046906,48366.0,48352.0,0.0183]
[1633123325232,0.0005301,48366.0,48352.0,0.0183]
[1633123325435,0.24326262,48367.0,48355.0,0.35801865]
[1633123325634,0.214374,48366.0,48355.0,0.35801865]
[1633123326036,0.214374,48366.0,48355.0,0.37401865]
[1633123326242,0.214374,48366.0,48356.0,0.00010046]
[1633123327236,0.04377593,48367.0,48356.0,0.00010046]
[1633123327434,0.214374,48366.0,48356.0,0.00010046]
[1633123327634,0.20881056,48366.0,48356.0,0.00010046]
[1633123327836,0.20881056,48366.0,48357.0,0.1143129]
[1633123328040,0.206774,48368.0,48367.0,0.01514201]
[1633123328237,0.214365,48368.0,48367.0,0.01514201]
[1633123328499,0.01848485,48372.0,48367.0,0.01514201]
[1633123328638,0.214365,48368.0,48367.0,0.01514201]
[1633123328840,0.2119678,48368.0,48367.0,0.01514201]
[1633123329041,0.2119678,48368.0,48367.0,0.00514201]
[1633123329638,0.01848485,48372.0,48367.0,0.00514201]
[1633123329839,0.214351,48371.0,48367.0,0.00514201]
[1633123330040,0.037,48368.0,48367.0,0.00514201]
[1633123330239,0.037,48368.0,48367.0,0.28645226]
[1633123330442,0.037,48368.0,48367.0,0.51587531]
[1633123330845,0.1664,48386.0,48375.0,0.206745]
[1633123331044,0.01848485,48392.0,48382.0,0.00124584]
[1633123331242,0.01848485,48392.0,48385.0,0.00129737]
[1633123331243,0.214351,48391.0,48385.0,0.00129737]
[1633123331508,0.01848485,48392.0,48391.0,0.22234268]
[1633123331641,0.01848485,48392.0,48391.0,0.51778116]
[1633123331841,0.01848485,48392.0,48391.0,0.88417177]
[1633123332244,0.02748485,48392.0,48391.0,0.89417177]
[1633123332642,0.02748485,48392.0,48391.0,1.33172277]
[1633123332841,0.02748485,48392.0,48391.0,1.10852277]
[1633123333442,0.02748485,48392.0,48391.0,1.09852277]
[1633123333643,0.01848485,48392.0,48391.0,1.40834377]
[1633123333845,0.01848485,48392.0,48391.0,1.83313438]
[1633123334047,0.01848485,48392.0,48391.0,1.87013438]
[1633123334242,0.01848485,48392.0,48391.0,1.87133523]
[1633123334843,0.0002,48402.0,48396.0,0.309794]
[1633123335043,0.0002,48402.0,48401.0,0.00124244]
[1633123335243,0.0002,48402.0,48401.0,0.48028821]
[1633123335843,0.0002,48402.0,48401.0,0.45531139]
[1633123336144,0.0212,48402.0,48401.0,0.26289344]
[1633123336343,0.0212,48402.0,48401.0,0.47836884]
[1633123336543,0.0212,48402.0,48401.0,0.49582004]
[1633123336747,0.0212,48402.0,48401.0,0.52881453]
[1633123336944,0.0212,48402.0,48401.0,0.29588793]
[1633123337544,0.0002,48402.0,48401.0,0.26564549]
[1633123338143,0.0002,48402.0,48401.0,0.29764549]
[1633123338544,0.0002,48402.0,48401.0,0.08329449]
[1633123339546,0.0002,48402.0,48401.0,0.05129449]
[1633123339950,0.0002,48402.0,48401.0,0.05254097]
[1633123340147,0.0192,48402.0,48401.0,0.08454097]
[1633123340348,0.0192,48402.0,48401.0,0.5129617]
[1633123340646,0.0192,48402.0,48401.0,0.29889197]
[1633123341250,0.0192,48402.0,48401.0,0.08454097]
[1633123341447,0.0002,48402.0,48401.0,0.05254097]
[1633123341649,0.0002,48402.0,48401.0,0.03254097]
[1633123341851,0.0002,48402.0,48401.0,0.13254097]
[1633123342048,0.0002,48402.0,48401.0,0.16554097]
[1633123342248,0.0002,48402.0,48401.0,0.13431232]
[1633123342448,0.0002,48402.0,48401.0,0.12484632]
[1633123342851,0.0002,48402.0,48401.0,0.14314632]
[1633123344051,0.0002,48402.0,48401.0,0.11014632]
[1633123344253,0.0172,48402.0,48401.0,0.14014632]
[1633123345451,0.0002,48402.0,48401.0,0.11014632]
[1633123345652,0.0002,48402.0,48399.0,0.23030813]
[1633123345854,0.00123481,48400.0,48393.0,0.0183]
[1633123346056,0.00121892,48394.0,48386.0,0.0183]
[1633123346252,0.0005301,48399.0,48386.0,0.0183]
[1633123346253,0.00127955,48387.0,48386.0,0.0183]
[1633123346851,0.00127955,48387.0,48386.0,0.22773132]
[1633123347253,0.00127955,48387.0,48386.0,0.22780339]
[1633123347453,0.00127955,48387.0,48386.0,0.01837207]
[1633123347653,0.00127955,48387.0,48386.0,0.03221652]
[1633123347855,0.21563055,48387.0,48386.0,0.03221652]
[1633123348055,0.45022846,48387.0,48386.0,0.03221652]
[1633123348254,0.47573349,48387.0,48386.0,0.05721652]
[1633123348453,0.47626359,48387.0,48386.0,0.05721652]
[1633123349056,0.47913846,48387.0,48386.0,0.05149487]
[1633123349528,0.67833846,48387.0,48386.0,0.02649487]
[1633123349662,0.96546508,48387.0,48386.0,0.02649487]
[1633123349858,0.74226508,48387.0,48386.0,0.02649487]
[1633123350062,0.21616065,48387.0,48386.0,0.02649487]
[1633123350259,0.24916065,48387.0,48386.0,0.02649487]
[1633123350456,0.24863055,48387.0,48386.0,0.02649487]
[1633123351259,0.24916065,48387.0,48386.0,0.02649487]
[1633123351459,0.24863055,48387.0,48386.0,0.02649487]
[1633123351861,0.24916065,48387.0,48386.0,0.02649487]
[1633123352062,0.21616065,48387.0,48386.0,0.02649487]
[1633123352264,0.24916065,48387.0,48386.0,0.02649487]
[1633123352662,0.24863055,48387.0,48386.0,0.02649487]
[1633123353262,0.0081571,48386.0,48375.0,0.206745]
[1633123353462,0.210014,48385.0,48375.0,0.206745]
[1633123353663,0.2148811,48384.0,48375.0,0.206745]
[1633123353867,0.00125577,48381.0,48375.0,0.206745]
[1633123355066,0.05435577,48381.0,48375.0,0.206745]
[1633123355267,0.206703,48380.0,48375.0,0.206745]
[1633123355543,0.0531,48379.0,48375.0,0.206745]
[1633123356268,0.393155,48379.0,48375.0,0.228745]
[1633123356570,0.214351,48378.0,48375.0,0.228745]
[1633123356769,0.0531,48377.0,48375.0,0.228745]
[1633123357667,0.0531,48377.0,48376.0,0.01837341]
[1633123358269,0.0881,48377.0,48376.0,0.02737341]
[1633123358670,0.0881,48377.0,48376.0,0.05673476]
[1633123359877,0.0881,48377.0,48376.0,0.04173476]
[1633123360070,0.0531,48377.0,48376.0,0.03273476]
[1633123360270,0.400162,48377.0,48376.0,0.03873476]
[1633123360470,0.380162,48377.0,48376.0,0.03873476]
[1633123361072,0.0701,48377.0,48376.0,0.03873476]
[1633123361537,0.0331,48377.0,48376.0,0.03273476]
[1633123361674,0.0281,48377.0,48376.0,0.03273476]
[1633123362177,0.0401,48377.0,48376.0,0.27638012]
[1633123362375,0.0401,48377.0,48376.0,0.5043143]
[1633123362573,0.03996,48377.0,48376.0,0.27638012]
[1633123362972,0.03996,48377.0,48376.0,0.58636112]
[1633123363172,0.03996,48377.0,48376.0,0.68636112]
[1633123363773,0.03996,48377.0,48376.0,0.68506676]
[1633123364174,0.03796,48377.0,48376.0,0.66170541]
[1633123364372,0.04608289,48377.0,48376.0,0.88490541]
[1633123364775,0.04608289,48377.0,48376.0,0.99235287]
[1633123365375,0.04608289,48377.0,48376.0,0.76915287]
[1633123365579,0.03608289,48377.0,48376.0,0.73515287]
[1633123366177,0.04408289,48377.0,48376.0,0.76815287]
[1633123366381,0.04408289,48377.0,48376.0,0.99135287]
[1633123366777,0.01612289,48377.0,48376.0,0.99135287]
[1633123366976,0.06922289,48377.0,48376.0,0.99135287]
[1633123367377,0.06922289,48377.0,48376.0,0.76815287]
[1633123367590,0.06922289,48377.0,48376.0,0.7364004]
[1633123367776,0.06122289,48377.0,48376.0,0.7364004]
[1633123367978,0.06122289,48377.0,48376.0,0.9596004]
[1633123368177,0.06422289,48377.0,48376.0,0.9946004]
[1633123369080,0.06422289,48377.0,48376.0,0.7714004]
[1633123369480,0.06122289,48377.0,48376.0,0.62895294]
[1633123369679,0.0531,48377.0,48376.0,0.62895294]
[1633123369881,0.0531,48377.0,48376.0,0.65706676]
[1633123370280,0.0531,48377.0,48376.0,0.66731076]
[1633123370882,0.0531,48377.0,48376.0,0.68561076]
[1633123371482,0.0531,48377.0,48376.0,0.65361076]
[1633123371685,0.0531,48377.0,48376.0,0.64861076]
[1633123371885,0.0531,48377.0,48376.0,0.45764235]
[1633123372089,0.0531,48377.0,48376.0,0.14766135]
[1633123372284,0.0621,48377.0,48376.0,0.17866135]
[1633123374286,0.0811,48377.0,48376.0,0.17366135]
[1633123375292,0.08922303,48377.0,48376.0,0.1443]
[1633123375690,0.08922303,48377.0,48376.0,0.24148166]
[1633123375890,0.08922303,48377.0,48376.0,0.59968409]
[1633123376289,0.06122303,48377.0,48376.0,0.1473]
[1633123376562,0.06122303,48377.0,48366.0,0.00129905]
[1633123376691,0.06122303,48377.0,48368.0,0.0183]
[1633123376692,0.06379267,48377.0,48368.0,0.0183]
[1633123376893,0.00127068,48369.0,48368.0,0.0183]
[1633123377093,0.21560068,48369.0,48368.0,0.0183]
[1633123377292,0.61975692,48369.0,48358.0,0.0183]
[1633123377490,0.20678,48364.0,48358.0,0.0183]
[1633123377693,0.00125864,48362.0,48360.0,0.18132609]
[1633123377896,0.21433,48361.0,48360.0,0.18132609]
[1633123378092,0.26743,48361.0,48360.0,0.18132609]
[1633123378290,0.26743,48361.0,48360.0,0.19732609]
[1633123378490,0.26743,48361.0,48360.0,0.19740541]
[1633123378692,0.26743,48361.0,48360.0,0.01607932]
[1633123379693,0.577594,48361.0,48360.0,7.932e-05]
[1633123379894,0.5788515,48361.0,48360.0,7.932e-05]
[1633123380297,0.6128515,48361.0,48360.0,7.932e-05]
[1633123380695,0.61851904,48361.0,48360.0,7.932e-05]
[1633123380895,0.61851904,48361.0,48360.0,0.02951093]
[1633123381494,0.84171904,48361.0,48360.0,0.02951093]
[1633123381696,0.58451904,48361.0,48360.0,0.02951093]
[1633123381896,0.58326154,48361.0,48360.0,0.02951093]
[1633123382097,0.27309754,48361.0,48360.0,0.54233682]
[1633123382295,0.06116524,48361.0,48360.0,0.54233682]
[1633123382495,0.10016524,48361.0,48360.0,0.54233682]
[1633123382696,0.10016524,48361.0,48360.0,0.63421514]
[1633123382896,0.10016524,48361.0,48360.0,0.24805759]
[1633123383100,0.09502323,48361.0,48360.0,0.24805759]
[1633123383900,0.05602323,48361.0,48360.0,0.24805759]
[1633123384699,0.2067467,48373.0,48360.0,0.6986911]
[1633123384901,0.20796443,48383.0,48375.0,0.09347537]
[1633123385098,0.714366,48382.0,48376.0,0.51995776]
[1633123385567,0.714366,48382.0,48376.0,0.0183]
[1633123385901,0.00124489,48380.0,48376.0,0.0183]
[1633123386096,0.214366,48379.0,48376.0,0.0183]
[1633123386297,0.214366,48379.0,48377.0,0.033383]
[1633123386499,0.2148961,48379.0,48378.0,0.0183]
[1633123386701,0.437566,48379.0,48378.0,0.0183]
[1633123386997,0.524426,48379.0,48378.0,0.0183]
[1633123387999,0.247366,48379.0,48378.0,0.0183]
[1633123388600,0.214366,48379.0,48378.0,0.0183]
[1633123388798,0.437566,48379.0,48378.0,0.0183]
[1633123389003,0.437566,48379.0,48378.0,0.01319564]
[1633123389599,0.469566,48379.0,48378.0,0.01319564]
[1633123391000,0.4380961,48379.0,48378.0,0.01319564]
[1633123391603,0.4690961,48379.0,48378.0,0.01319564]
[1633123391803,0.47319394,48379.0,48378.0,0.01319564]
[1633123392005,0.47319394,48379.0,48378.0,6.393e-05]
[1633123392810,0.44219394,48379.0,48378.0,6.393e-05]
[1633123393407,0.21899394,48379.0,48378.0,6.393e-05]
[1633123393605,0.21899394,48379.0,48378.0,0.10006393]
[1633123393606,0.44219394,48379.0,48378.0,0.10006393]
[1633123393805,0.47319394,48379.0,48378.0,0.10006393]
[1633123394403,0.24946384,48379.0,48378.0,0.10006393]
[1633123395004,0.21846384,48379.0,48378.0,0.10006393]
[1633123395605,0.25046384,48379.0,48378.0,0.10006393]
[1633123396610,0.25046384,48379.0,48378.0,0.11836393]
[1633123396810,0.00409784,48379.0,48378.0,0.11836393]
[1633123397212,0.310012,48386.0,48378.0,0.32005618]
[1633123397610,0.035,48379.0,48378.0,0.32005618]
[1633123399011,0.31121369,48387.0,48378.0,0.32005618]
[1633123399212,0.309998,48387.0,48383.0,0.00122666]
[1633123399411,0.214366,48386.0,48384.0,0.0183]
[1633123399615,0.309998,48387.0,48384.0,0.0183]
[1633123399616,0.214366,48385.0,48384.0,0.0183]
[1633123401076,0.028666,48385.0,48384.0,0.38827447]
[1633123401480,0.31124166,48387.0,48384.0,0.60769192]
[1633123401680,0.033,48385.0,48384.0,0.60769192]
[1633123402081,0.033,48385.0,48384.0,0.38827447]
[1633123402677,0.033,48385.0,48384.0,0.64021681]